[Event "*** Titled Tuesday 3|2 Blitz"]
[Site "Chess.com"]
[Date "2016.10.04"]
[Round "6"]
[White "Newlight1"]
[Black "3f32"]
[Result "1-0"]
[WhiteElo "2528"]
[BlackElo "2272"]
[TimeControl "180+2"]
[EndTime "18:19:15 PDT"]
[Termination "Newlight1 won by resignation"]

1. e4 {[%clk 0:03:01.4]} 1... e6 {[%clk 0:02:58.9]} 2. d4 {[%clk 0:02:59]} 2...
d5 {[%clk 0:02:59.3]} 3. Nd2 {[%clk 0:03:00.2]} 3... Nf6 {[%clk 0:02:58.7]} 4.
e5 {[%clk 0:03:01.2]} 4... Nfd7 {[%clk 0:02:59.9]} 5. c3 {[%clk 0:03:02.8]} 5...
c5 {[%clk 0:03:00.9]} 6. Bd3 {[%clk 0:03:04.1]} 6... Nc6 {[%clk 0:03:02.2]} 7.
Ngf3 {[%clk 0:03:05.5]} 7... f6 {[%clk 0:03:03.7]} 8. exf6 {[%clk 0:03:04.6]}
8... Nxf6 {[%clk 0:03:05.6]} 9. O-O {[%clk 0:03:05.8]} 9... cxd4 {[%clk
0:03:05.3]} 10. cxd4 {[%clk 0:03:06.6]} 10... Bd6 {[%clk 0:03:06.4]} 11. Nb3
{[%clk 0:02:31]} 11... O-O {[%clk 0:03:04.8]} 12. Re1 {[%clk 0:02:31.8]} 12...
Qc7 {[%clk 0:03:01.2]} 13. Bd2 {[%clk 0:02:30.6]} 13... g6 {[%clk 0:02:56.8]}
14. Rc1 {[%clk 0:02:31.3]} 14... Nh5 {[%clk 0:02:53]} 15. Bh6 {[%clk 0:02:30.1]}
15... Rxf3 {[%clk 0:02:53.1]} 16. Qxf3 {[%clk 0:02:27.9]} 16... Bxh2+ {[%clk
0:02:46.7]} 17. Kh1 {[%clk 0:02:28.6]} 17... Bf4 {[%clk 0:02:31.8]} 18. Bxf4
{[%clk 0:02:25.3]} 18... Qxf4 {[%clk 0:02:33.7]} 19. Qxf4 {[%clk 0:02:22.1]}
19... Nxf4 {[%clk 0:02:35.6]} 20. Bf1 {[%clk 0:02:23.8]} 20... Bd7 {[%clk
0:02:30.8]} 21. g3 {[%clk 0:02:22.3]} 21... Nh5 {[%clk 0:02:29.3]} 22. Bb5
{[%clk 0:02:18.2]} 22... Re8 {[%clk 0:02:01]} 23. Bxc6 {[%clk 0:01:35.6]} 23...
Bxc6 {[%clk 0:01:54.2]} 24. Na5 {[%clk 0:01:35.5]} 24... Bb5 {[%clk 0:01:42.7]}
25. Nxb7 {[%clk 0:01:32.3]} 25... Re7 {[%clk 0:01:40.7]} 26. Nc5 {[%clk
0:01:31.9]} 26... Kf7 {[%clk 0:01:40.4]} 27. a4 {[%clk 0:01:30.9]} 27... Be8
{[%clk 0:01:40]} 28. Re5 {[%clk 0:01:30.4]} 28... Ng7 {[%clk 0:01:40.1]} 29. b4
{[%clk 0:01:28.3]} 29... h5 {[%clk 0:01:38.4]} 30. b5 {[%clk 0:01:28.7]} 30...
Nf5 {[%clk 0:01:39.3]} 31. Nb3 {[%clk 0:01:26.3]} 31... Kf6 {[%clk 0:01:38.3]}
32. Kg2 {[%clk 0:01:19.4]} 32... Nxd4 {[%clk 0:01:37.5]} 33. Re3 {[%clk
0:00:53.1]} 33... Nxb3 {[%clk 0:01:37.8]} 34. Rxb3 {[%clk 0:00:55]} 34... d4
{[%clk 0:01:38.2]} 35. a5 {[%clk 0:00:49.6]} 35... d3 {[%clk 0:01:35.3]} 36.
Rxd3 {[%clk 0:00:29.9]} 36... Bxb5 {[%clk 0:01:35.2]} 37. Rf3+ {[%clk
0:00:30.5]} 37... Kg7 {[%clk 0:01:34.6]} 38. Rfc3 {[%clk 0:00:28.7]} 38... Kf6
{[%clk 0:01:31]} 39. Rc7 {[%clk 0:00:30.2]} 39... Rxc7 {[%clk 0:01:30.2]} 40.
Rxc7 {[%clk 0:00:31.7]} 40... a6 {[%clk 0:01:31.8]} 41. Kf3 {[%clk 0:00:31.7]}
41... Ke5 {[%clk 0:01:31.7]} 42. Rf7 {[%clk 0:00:31.3]} 42... Bc4 {[%clk
0:01:31.2]} 43. Ke3 {[%clk 0:00:31.3]} 43... Bb5 {[%clk 0:01:29.3]} 44. f4+
{[%clk 0:00:31.1]} 44... Kd5 {[%clk 0:01:25.7]} 45. Rg7 {[%clk 0:00:30.7]} 45...
Be8 {[%clk 0:01:24.4]} 46. Rg8 {[%clk 0:00:27.7]} 46... Bd7 {[%clk 0:01:19.3]}
47. Rxg6 {[%clk 0:00:28.4]} 47... Kc5 {[%clk 0:01:20.3]} 48. Rg5+ {[%clk
0:00:29]} 48... Kb4 {[%clk 0:01:20.5]} 49. Rxh5 {[%clk 0:00:30.3]} 49... Bb5
{[%clk 0:01:21.9]} 50. g4 {[%clk 0:00:30.8]} 50... Kxa5 {[%clk 0:01:23.1]} 51.
g5 {[%clk 0:00:32.5]} 51... Kb6 {[%clk 0:01:24.2]} 52. g6 {[%clk 0:00:33.9]}
52... Be8 {[%clk 0:01:24.8]} 53. Rg5 {[%clk 0:00:35.2]} 53... a5 {[%clk
0:01:23.9]} 54. g7 {[%clk 0:00:36.8]} 54... Bf7 {[%clk 0:01:25.6]} 55. g8=Q
{[%clk 0:00:38.4]} 55... Bxg8 {[%clk 0:01:27.5]} 56. Rxg8 {[%clk 0:00:40.1]}
56... a4 {[%clk 0:01:29.2]} 57. Ra8 {[%clk 0:00:41.5]} 57... Kb5 {[%clk
0:01:31.1]} 58. Ke4 {[%clk 0:00:43.1]} 58... Kb4 {[%clk 0:01:32.7]} 59. Ke5
{[%clk 0:00:43.8]} 59... a3 {[%clk 0:01:34.6]} 60. Kxe6 {[%clk 0:00:45.5]} 60...
Kb3 {[%clk 0:01:36.5]} 61. f5 {[%clk 0:00:47.1]} 61... a2 {[%clk 0:01:38.4]} 62.
f6 {[%clk 0:00:48.4]} 62... Kb2 {[%clk 0:01:40.3]} 63. f7 {[%clk 0:00:50]} 63...
a1=Q {[%clk 0:01:42.2]} 64. Rxa1 {[%clk 0:00:51.3]} 64... Kxa1 {[%clk
0:01:44.1]} 65. f8=Q {[%clk 0:00:53]} 65... Kb2 {[%clk 0:01:45.9]} 66. Qc5
{[%clk 0:00:54]} 66... Kb3 {[%clk 0:01:47]} 67. Kd5 {[%clk 0:00:55.6]} 67... Ka4
{[%clk 0:01:48.9]} 68. Qb6 {[%clk 0:00:56.4]} 68... Ka3 {[%clk 0:01:50.8]} 69.
Kc4 {[%clk 0:00:58.3]} 1-0

[Event "*** Titled Tuesday 3|2 Blitz"]
[Site "Chess.com"]
[Date "2016.10.04"]
[Round "6"]
[White "Fins0905"]
[Black "spirals5"]
[Result "1-0"]
[WhiteElo "2443"]
[BlackElo "2266"]
[TimeControl "180+2"]
[EndTime "18:19:20 PDT"]
[Termination "Fins0905 won by resignation"]

1. Nf3 {[%clk 0:03:02]} 1... Nf6 {[%clk 0:03:00.1]} 2. g3 {[%clk 0:03:02.9]}
2... d5 {[%clk 0:03:00.3]} 3. Bg2 {[%clk 0:03:02.2]} 3... c5 {[%clk 0:03:00.9]}
4. O-O {[%clk 0:03:01.6]} 4... Nc6 {[%clk 0:03:01.8]} 5. d4 {[%clk 0:03:02.7]}
5... e6 {[%clk 0:03:02.8]} 6. c4 {[%clk 0:03:01.9]} 6... Be7 {[%clk 0:03:01.7]}
7. cxd5 {[%clk 0:03:02.4]} 7... Nxd5 {[%clk 0:03:02.2]} 8. Nc3 {[%clk
0:02:55.8]} 8... Nxc3 {[%clk 0:03:00.2]} 9. bxc3 {[%clk 0:02:57.7]} 9... cxd4
{[%clk 0:03:00.9]} 10. cxd4 {[%clk 0:02:54.6]} 10... O-O {[%clk 0:03:00.5]} 11.
e4 {[%clk 0:02:44.2]} 11... Bd7 {[%clk 0:02:53.8]} 12. Rb1 {[%clk 0:02:23.2]}
12... b6 {[%clk 0:02:34.1]} 13. Bf4 {[%clk 0:02:15.1]} 13... Rc8 {[%clk
0:02:33.4]} 14. d5 {[%clk 0:02:08.4]} 14... exd5 {[%clk 0:02:33.9]} 15. exd5
{[%clk 0:02:09.3]} 15... Na5 {[%clk 0:02:34.9]} 16. Ne5 {[%clk 0:02:02]} 16...
Bf6 {[%clk 0:02:26.6]} 17. Qd3 {[%clk 0:01:20]} 17... Re8 {[%clk 0:02:20.1]} 18.
Rfe1 {[%clk 0:01:08.5]} 18... Bxe5 {[%clk 0:02:10.3]} 19. Bxe5 {[%clk
0:01:04.9]} 19... Nc4 {[%clk 0:01:53.2]} 20. Ba1 {[%clk 0:01:03.7]} 20... Rxe1+
{[%clk 0:01:30.1]} 21. Rxe1 {[%clk 0:01:03.8]} 21... Qg5 {[%clk 0:01:29.6]} 22.
Qd4 {[%clk 0:00:39.6]} 22... Nd6 {[%clk 0:01:12.4]} 23. h4 {[%clk 0:00:38.4]}
23... Qg6 {[%clk 0:00:57.8]} 24. Qf4 {[%clk 0:00:36]} 24... Re8 {[%clk
0:00:47.7]} 25. Rc1 {[%clk 0:00:34]} 25... h5 {[%clk 0:00:37.9]} 26. Kh2 {[%clk
0:00:27.5]} 26... Nf5 {[%clk 0:00:12.2]} 27. Rc7 {[%clk 0:00:27]} 27... Bc8
{[%clk 0:00:08.4]} 28. Be4 {[%clk 0:00:18.5]} 28... Qd6 {[%clk 0:00:06.7]} 29.
Rxc8 {[%clk 0:00:15.7]} 29... Rxc8 {[%clk 0:00:06.2]} 30. Qxf5 {[%clk
0:00:15.2]} 30... Re8 {[%clk 0:00:04.8]} 31. Qh7+ {[%clk 0:00:15.2]} 31... Kf8
{[%clk 0:00:06.1]} 32. Qh8+ {[%clk 0:00:14.5]} 32... Ke7 {[%clk 0:00:07.2]} 33.
Qxg7 {[%clk 0:00:15.5]} 33... Kd8 {[%clk 0:00:07.4]} 34. Qf6+ {[%clk 0:00:14.5]}
34... Qxf6 {[%clk 0:00:08]} 35. Bxf6+ {[%clk 0:00:16.4]} 35... Kd7 {[%clk
0:00:09.6]} 36. Bf3 {[%clk 0:00:15.2]} 36... Re1 {[%clk 0:00:09.5]} 37. Bxh5
{[%clk 0:00:15.3]} 37... Rc1 {[%clk 0:00:08.2]} 38. Bg4+ {[%clk 0:00:15.8]}
38... Kd6 {[%clk 0:00:08.6]} 39. h5 {[%clk 0:00:16.8]} 39... Rc2 {[%clk
0:00:09.2]} 40. Kg2 {[%clk 0:00:17.1]} 40... Rc5 {[%clk 0:00:05.6]} 41. h6
{[%clk 0:00:17]} 41... Rxd5 {[%clk 0:00:06.2]} 42. h7 {[%clk 0:00:18.2]} 1-0

[Event "*** Titled Tuesday 3|2 Blitz"]
[Site "Chess.com"]
[Date "2016.10.04"]
[Round "6"]
[White "platy3"]
[Black "GGuseinov"]
[Result "1-0"]
[WhiteElo "2753"]
[BlackElo "2614"]
[TimeControl "180+2"]
[EndTime "18:19:39 PDT"]
[Termination "platy3 won on time"]

1. e4 {[%clk 0:03:02]} 1... c5 {[%clk 0:02:59.3]} 2. Nf3 {[%clk 0:03:03.3]} 2...
g6 {[%clk 0:02:54.1]} 3. d4 {[%clk 0:03:01.2]} 3... cxd4 {[%clk 0:02:55.1]} 4.
Nxd4 {[%clk 0:03:03.1]} 4... Bg7 {[%clk 0:02:56.2]} 5. c4 {[%clk 0:03:04.9]}
5... Nc6 {[%clk 0:02:48.8]} 6. Be3 {[%clk 0:03:03.1]} 6... Nf6 {[%clk
0:02:47.8]} 7. Nc3 {[%clk 0:03:04.4]} 7... O-O {[%clk 0:02:45.6]} 8. Be2 {[%clk
0:03:05.8]} 8... d6 {[%clk 0:02:42.7]} 9. O-O {[%clk 0:03:06.9]} 9... Bd7 {[%clk
0:02:43.7]} 10. Qd2 {[%clk 0:03:08.5]} 10... Nxd4 {[%clk 0:02:34.2]} 11. Bxd4
{[%clk 0:03:10.4]} 11... Bc6 {[%clk 0:02:36.1]} 12. f3 {[%clk 0:03:03.2]} 12...
Nd7 {[%clk 0:02:34.2]} 13. Bf2 {[%clk 0:03:04.6]} 13... a5 {[%clk 0:02:31.8]}
14. b3 {[%clk 0:03:05.5]} 14... Nc5 {[%clk 0:02:26.5]} 15. Rab1 {[%clk
0:03:06.5]} 15... Be5 {[%clk 0:02:22.3]} 16. Bd1 {[%clk 0:03:04.9]} 16... f5
{[%clk 0:02:18.3]} 17. exf5 {[%clk 0:03:00.6]} 17... Rxf5 {[%clk 0:02:18.7]} 18.
Nd5 {[%clk 0:02:51.5]} 18... e6 {[%clk 0:02:10.5]} 19. Ne3 {[%clk 0:02:50.9]}
19... Qg5 {[%clk 0:01:56]} 20. h4 {[%clk 0:02:13.6]} 20... Qh6 {[%clk
0:01:51.7]} 21. Qe1 {[%clk 0:02:10.3]} 21... Rh5 {[%clk 0:01:42.1]} 22. Ng4
{[%clk 0:02:05.9]} 22... Qf4 {[%clk 0:01:42.6]} 23. Nxe5 {[%clk 0:02:00.1]}
23... Rxe5 {[%clk 0:01:39]} 24. Qc3 {[%clk 0:02:01.2]} 24... Rf8 {[%clk
0:01:33.4]} 25. Rb2 {[%clk 0:01:55.5]} 25... b5 {[%clk 0:01:28.7]} 26. Rd2
{[%clk 0:01:53.7]} 26... Rh5 {[%clk 0:01:17.5]} 27. Qd4 {[%clk 0:01:47.7]} 27...
Qxd4 {[%clk 0:01:12.8]} 28. Rxd4 {[%clk 0:01:49.6]} 28... Nb7 {[%clk 0:01:09.7]}
29. Re1 {[%clk 0:01:44.1]} 29... e5 {[%clk 0:01:05.1]} 30. Rd2 {[%clk
0:01:45.4]} 30... bxc4 {[%clk 0:01:00.4]} 31. bxc4 {[%clk 0:01:47.3]} 31... Rhf5
{[%clk 0:01:01.9]} 32. Bc2 {[%clk 0:01:36.2]} 32... R5f6 {[%clk 0:00:59.1]} 33.
c5 {[%clk 0:01:37.6]} 33... Nxc5 {[%clk 0:00:56.2]} 34. Bxc5 {[%clk 0:01:38.6]}
34... dxc5 {[%clk 0:00:53.1]} 35. Rxe5 {[%clk 0:01:40.2]} 35... c4 {[%clk
0:00:47.1]} 36. Rxa5 {[%clk 0:01:37]} 36... Be8 {[%clk 0:00:40.8]} 37. Rc5
{[%clk 0:01:36.9]} 37... Bf7 {[%clk 0:00:38.2]} 38. a4 {[%clk 0:01:33.1]} 38...
Rf4 {[%clk 0:00:34.2]} 39. a5 {[%clk 0:01:27.4]} 39... Rxh4 {[%clk 0:00:25.3]}
40. a6 {[%clk 0:01:24.5]} 40... Ra8 {[%clk 0:00:22.2]} 41. Rd6 {[%clk
0:01:25.2]} 41... Rh5 {[%clk 0:00:18.7]} 42. Rxh5 {[%clk 0:01:11.9]} 42... gxh5
{[%clk 0:00:20.6]} 43. Be4 {[%clk 0:01:13.8]} 43... Ra7 {[%clk 0:00:13.6]} 44.
Kf2 {[%clk 0:01:14.4]} 44... h4 {[%clk 0:00:10.7]} 45. Ke3 {[%clk 0:01:15.5]}
45... Kg7 {[%clk 0:00:09.3]} 46. Kd4 {[%clk 0:01:16.4]} 46... Bg6 {[%clk
0:00:09.3]} 47. Kxc4 {[%clk 0:01:12.8]} 47... Bxe4 {[%clk 0:00:07.1]} 48. fxe4
{[%clk 0:01:14.7]} 48... Rc7+ {[%clk 0:00:03.7]} 49. Kb5 {[%clk 0:01:14.4]} 1-0

[Event "*** Titled Tuesday 3|2 Blitz"]
[Site "Chess.com"]
[Date "2016.10.04"]
[Round "6"]
[White "cheese111"]
[Black "gmjoey1"]
[Result "0-1"]
[WhiteElo "2290"]
[BlackElo "2485"]
[TimeControl "180+2"]
[EndTime "18:19:43 PDT"]
[Termination "gmjoey1 won by checkmate"]

1. e4 {[%clk 0:03:02]} 1... c6 {[%clk 0:02:59.2]} 2. Nc3 {[%clk 0:02:49.1]} 2...
d5 {[%clk 0:03:01.1]} 3. Nf3 {[%clk 0:02:50.4]} 3... dxe4 {[%clk 0:03:01.7]} 4.
Nxe4 {[%clk 0:02:52.3]} 4... Nf6 {[%clk 0:03:02.7]} 5. Nxf6+ {[%clk 0:02:51.5]}
5... exf6 {[%clk 0:03:04.6]} 6. d4 {[%clk 0:02:52.5]} 6... Bd6 {[%clk
0:03:06.4]} 7. Be2 {[%clk 0:02:51.6]} 7... O-O {[%clk 0:03:08.3]} 8. O-O {[%clk
0:02:51.8]} 8... Re8 {[%clk 0:03:08.9]} 9. Be3 {[%clk 0:02:47.5]} 9... Nd7
{[%clk 0:03:07.6]} 10. Re1 {[%clk 0:02:43.9]} 10... Nf8 {[%clk 0:03:07.8]} 11.
c3 {[%clk 0:02:39]} 11... Bc7 {[%clk 0:03:08.4]} 12. Qd2 {[%clk 0:02:29]} 12...
Ng6 {[%clk 0:03:08.5]} 13. g3 {[%clk 0:02:09.4]} 13... Bh3 {[%clk 0:03:00.3]}
14. Bf1 {[%clk 0:02:06.1]} 14... Bxf1 {[%clk 0:03:00.2]} 15. Kxf1 {[%clk
0:02:04.8]} 15... Qd5 {[%clk 0:03:01.7]} 16. Qd1 {[%clk 0:01:13]} 16... h5
{[%clk 0:02:50.4]} 17. Kg1 {[%clk 0:01:03.3]} 17... h4 {[%clk 0:02:49.1]} 18.
Nd2 {[%clk 0:01:02.4]} 18... Qb5 {[%clk 0:02:30.6]} 19. b3 {[%clk 0:00:57.7]}
19... Qd3 {[%clk 0:02:23.9]} 20. Qf3 {[%clk 0:00:33]} 20... Qxc3 {[%clk
0:02:20.5]} 21. Ne4 {[%clk 0:00:32.6]} 21... Qa5 {[%clk 0:01:52.2]} 22. Nc5
{[%clk 0:00:22.8]} 22... b6 {[%clk 0:01:48.4]} 23. Nd3 {[%clk 0:00:19.6]} 23...
Qd5 {[%clk 0:01:43.6]} 24. Qxd5 {[%clk 0:00:18.5]} 24... cxd5 {[%clk 0:01:45.5]}
25. Nb4 {[%clk 0:00:17.5]} 25... Rad8 {[%clk 0:01:46.1]} 26. Rac1 {[%clk
0:00:17.1]} 26... Bd6 {[%clk 0:01:46.5]} 27. Nxd5 {[%clk 0:00:14.7]} 27... Ba3
{[%clk 0:01:47.1]} 28. Nc7 {[%clk 0:00:10.2]} 28... Bxc1 {[%clk 0:01:45.5]} 29.
Nxe8 {[%clk 0:00:11]} 29... Bxe3 {[%clk 0:01:45]} 30. Rxe3 {[%clk 0:00:12.9]}
30... Rxd4 {[%clk 0:01:45.4]} 31. Nc7 {[%clk 0:00:11.2]} 31... h3 {[%clk
0:01:44.7]} 32. Kf1 {[%clk 0:00:11.8]} 32... Rd2 {[%clk 0:01:42.6]} 33. Re2
{[%clk 0:00:11.7]} 33... Rd1+ {[%clk 0:01:43.3]} 34. Re1 {[%clk 0:00:12.8]}
34... Rxe1+ {[%clk 0:01:43]} 35. Kxe1 {[%clk 0:00:14.7]} 35... Ne5 {[%clk
0:01:44.3]} 36. Ke2 {[%clk 0:00:12]} 36... Ng4 {[%clk 0:01:44.2]} 37. f3 {[%clk
0:00:12.4]} 37... Nxh2 {[%clk 0:01:44.9]} 38. Kf2 {[%clk 0:00:13.5]} 38... f5
{[%clk 0:01:41]} 39. Nd5 {[%clk 0:00:12.5]} 39... g5 {[%clk 0:01:40.6]} 40. Ne7+
{[%clk 0:00:12.7]} 40... Kh7 {[%clk 0:01:40.6]} 41. Nxf5 {[%clk 0:00:11.3]}
41... g4 {[%clk 0:01:42.2]} 42. fxg4 {[%clk 0:00:06.7]} 42... Nxg4+ {[%clk
0:01:42.9]} 43. Kg1 {[%clk 0:00:07.8]} 43... Kg6 {[%clk 0:01:39.9]} 44. Nd4
{[%clk 0:00:08.5]} 44... Kf6 {[%clk 0:01:38.4]} 45. Nc6 {[%clk 0:00:08.3]} 45...
Kf5 {[%clk 0:01:38.1]} 46. Nxa7 {[%clk 0:00:06.6]} 46... Ke4 {[%clk 0:01:39.6]}
47. Nc6 {[%clk 0:00:06]} 47... Kf3 {[%clk 0:01:41.1]} 48. Nd4+ {[%clk
0:00:06.9]} 48... Kxg3 {[%clk 0:01:42.3]} 49. Ne2+ {[%clk 0:00:07.3]} 49... Kf3
{[%clk 0:01:43.2]} 50. Nd4+ {[%clk 0:00:08.3]} 50... Ke4 {[%clk 0:01:44.4]} 51.
Nb5 {[%clk 0:00:06.4]} 51... f5 {[%clk 0:01:41.7]} 52. a4 {[%clk 0:00:06]} 52...
f4 {[%clk 0:01:42.7]} 53. b4 {[%clk 0:00:06.7]} 53... f3 {[%clk 0:01:43.4]} 54.
Nc3+ {[%clk 0:00:06.6]} 54... Kf4 {[%clk 0:01:43.6]} 55. Nd1 {[%clk 0:00:05.8]}
55... h2+ {[%clk 0:01:42.8]} 56. Kh1 {[%clk 0:00:06.3]} 56... Kg3 {[%clk
0:01:44.4]} 57. a5 {[%clk 0:00:05.3]} 57... bxa5 {[%clk 0:01:45.4]} 58. bxa5
{[%clk 0:00:06.2]} 58... f2 {[%clk 0:01:45.8]} 59. Ne3 {[%clk 0:00:05.8]} 59...
Nxe3 {[%clk 0:01:46.8]} 60. a6 {[%clk 0:00:05.8]} 60... Ng4 {[%clk 0:01:46.3]}
61. a7 {[%clk 0:00:06.2]} 61... Ne3 {[%clk 0:01:47.9]} 62. a8=Q {[%clk 0:00:07]}
62... f1=Q# {[%clk 0:01:49.4]} 0-1

[Event "*** Titled Tuesday 3|2 Blitz"]
[Site "Chess.com"]
[Date "2016.10.04"]
[Round "6"]
[White "talaicito"]
[Black "Shivagami"]
[Result "0-1"]
[WhiteElo "1981"]
[BlackElo "1925"]
[TimeControl "180+2"]
[EndTime "18:20:04 PDT"]
[Termination "Shivagami won by resignation"]

1. e4 {[%clk 0:03:02]} 1... Nc6 {[%clk 0:02:55.1]} 2. Nc3 {[%clk 0:03:00.6]}
2... d6 {[%clk 0:02:46.7]} 3. d4 {[%clk 0:02:56.3]} 3... Nf6 {[%clk 0:02:40.7]}
4. g3 {[%clk 0:02:49]} 4... e5 {[%clk 0:02:35.4]} 5. dxe5 {[%clk 0:02:47.9]}
5... Nxe5 {[%clk 0:02:34.7]} 6. Bg2 {[%clk 0:02:43.8]} 6... Bg4 {[%clk
0:02:32.3]} 7. f3 {[%clk 0:02:43.9]} 7... Be6 {[%clk 0:02:32.8]} 8. Nge2 {[%clk
0:02:39.6]} 8... Be7 {[%clk 0:02:32.4]} 9. O-O {[%clk 0:02:31.9]} 9... h5 {[%clk
0:02:21.1]} 10. f4 {[%clk 0:02:16.5]} 10... Neg4 {[%clk 0:02:17.2]} 11. h3
{[%clk 0:02:15.2]} 11... Nh6 {[%clk 0:02:13.6]} 12. e5 {[%clk 0:02:06.9]} 12...
dxe5 {[%clk 0:02:07]} 13. fxe5 {[%clk 0:02:06.8]} 13... Nd7 {[%clk 0:02:07.5]}
14. Nf4 {[%clk 0:01:52.5]} 14... Nxe5 {[%clk 0:02:03.3]} 15. Bxb7 {[%clk
0:01:31]} 15... Qxd1 {[%clk 0:01:57.2]} 16. Rxd1 {[%clk 0:01:27.5]} 16... Rb8
{[%clk 0:01:58.8]} 17. Nxe6 {[%clk 0:01:12.3]} 17... fxe6 {[%clk 0:01:57.2]} 18.
Bg2 {[%clk 0:01:03.2]} 18... O-O {[%clk 0:01:51.4]} 19. Bf4 {[%clk 0:00:57.6]}
19... Nc4 {[%clk 0:01:42.5]} 20. b3 {[%clk 0:00:53.6]} 20... Nd6 {[%clk
0:01:36.4]} 21. Bxh6 {[%clk 0:00:49.4]} 21... gxh6 {[%clk 0:01:35.7]} 22. Ne2
{[%clk 0:00:36.1]} 22... Nf5 {[%clk 0:01:27.5]} 23. Be4 {[%clk 0:00:22.4]} 23...
Bc5+ {[%clk 0:01:22.4]} 24. Kh2 {[%clk 0:00:16.7]} 24... Ne3 {[%clk 0:01:22.4]}
25. Nf4 {[%clk 0:00:16.5]} 25... Nxd1 {[%clk 0:01:17.4]} 26. Rxd1 {[%clk
0:00:17.5]} 26... h4 {[%clk 0:01:18.7]} 27. Nxe6 {[%clk 0:00:17.4]} 27... hxg3+
{[%clk 0:01:19]} 28. Kxg3 {[%clk 0:00:18]} 28... Bd6+ {[%clk 0:01:19.2]} 29. Kg4
{[%clk 0:00:17.1]} 29... Rf6 {[%clk 0:01:16.9]} 30. Bd5 {[%clk 0:00:17.9]} 30...
Kh8 {[%clk 0:01:15.3]} 31. c4 {[%clk 0:00:16.7]} 31... Rg8+ {[%clk 0:01:14]} 32.
Kh5 {[%clk 0:00:14.6]} 32... Rg3 {[%clk 0:00:38.6]} 33. Kh4 {[%clk 0:00:12.9]}
33... Rgg6 {[%clk 0:00:32.9]} 34. c5 {[%clk 0:00:12.9]} 34... Bg3+ {[%clk
0:00:30.8]} 35. Kh5 {[%clk 0:00:13]} 35... Rxe6 {[%clk 0:00:25.6]} 36. Bxe6
{[%clk 0:00:14]} 36... Rxe6 {[%clk 0:00:27.5]} 37. Rd8+ {[%clk 0:00:14.4]} 37...
Kg7 {[%clk 0:00:27.6]} 38. Rd7+ {[%clk 0:00:15.5]} 38... Kf8 {[%clk 0:00:27.8]}
39. c6 {[%clk 0:00:12.1]} 39... Rxc6 {[%clk 0:00:27.5]} 40. Rh7 {[%clk
0:00:11.8]} 40... Ra6 {[%clk 0:00:25]} 41. a4 {[%clk 0:00:11]} 41... Rb6 {[%clk
0:00:25.4]} 42. Rxh6 {[%clk 0:00:10.7]} 42... Rxb3 {[%clk 0:00:23.9]} 43. Ra6
{[%clk 0:00:11.5]} 43... Rb7 {[%clk 0:00:23.2]} 44. Kg6 {[%clk 0:00:10.8]} 44...
Rb6+ {[%clk 0:00:19.8]} 45. Rxb6 {[%clk 0:00:10.9]} 45... axb6 {[%clk
0:00:21.3]} 46. Kf6 {[%clk 0:00:11.5]} 46... Kg8 {[%clk 0:00:21.5]} 47. Kf5
{[%clk 0:00:11.1]} 47... Kh7 {[%clk 0:00:22.6]} 48. Kg4 {[%clk 0:00:10]} 48...
Bd6 {[%clk 0:00:24.2]} 49. Kf5 {[%clk 0:00:10.5]} 49... Kh6 {[%clk 0:00:24.4]}
50. Kg4 {[%clk 0:00:10.6]} 50... Kg6 {[%clk 0:00:25.3]} 51. h4 {[%clk 0:00:10]}
51... Kh6 {[%clk 0:00:25.7]} 0-1

[Event "*** Titled Tuesday 3|2 Blitz"]
[Site "Chess.com"]
[Date "2016.10.04"]
[Round "6"]
[White "NTBT_DHS"]
[Black "Tarlev_Konstantin"]
[Result "0-1"]
[WhiteElo "2453"]
[BlackElo "2581"]
[TimeControl "180+2"]
[EndTime "18:20:06 PDT"]
[Termination "Tarlev_Konstantin won by checkmate"]

1. d4 {[%clk 0:03:00.4]} 1... Nf6 {[%clk 0:03:00.3]} 2. c4 {[%clk 0:03:01.9]}
2... e6 {[%clk 0:03:01.7]} 3. Nc3 {[%clk 0:03:02.6]} 3... Bb4 {[%clk 0:03:02]}
4. e3 {[%clk 0:03:04.1]} 4... b6 {[%clk 0:03:00.2]} 5. Ne2 {[%clk 0:03:01.6]}
5... Ba6 {[%clk 0:02:57.7]} 6. a3 {[%clk 0:03:00.7]} 6... Bxc3+ {[%clk
0:02:57.2]} 7. Nxc3 {[%clk 0:03:01.6]} 7... d5 {[%clk 0:02:58.9]} 8. Qf3 {[%clk
0:02:53.8]} 8... O-O {[%clk 0:02:47.2]} 9. cxd5 {[%clk 0:02:52.2]} 9... exd5
{[%clk 0:02:43.3]} 10. g4 {[%clk 0:02:39.2]} 10... Re8 {[%clk 0:02:35.5]} 11.
Bd2 {[%clk 0:02:27.7]} 11... Bxf1 {[%clk 0:02:27.4]} 12. Kxf1 {[%clk 0:02:27.1]}
12... Nc6 {[%clk 0:02:17.5]} 13. Rc1 {[%clk 0:02:24.2]} 13... Qd7 {[%clk
0:02:18.6]} 14. g5 {[%clk 0:02:21.1]} 14... Ne4 {[%clk 0:02:18.8]} 15. Nxe4
{[%clk 0:02:20.1]} 15... Rxe4 {[%clk 0:02:14.3]} 16. Rg1 {[%clk 0:02:10.2]}
16... Rae8 {[%clk 0:02:13.1]} 17. Rg3 {[%clk 0:02:09.8]} 17... Ne7 {[%clk
0:02:10.6]} 18. h3 {[%clk 0:01:49.3]} 18... Nf5 {[%clk 0:01:55.9]} 19. Rg4
{[%clk 0:01:49.3]} 19... Nd6 {[%clk 0:01:55.6]} 20. Be1 {[%clk 0:01:27.8]} 20...
a5 {[%clk 0:01:53.4]} 21. Kg2 {[%clk 0:01:26.9]} 21... a4 {[%clk 0:01:41.8]} 22.
Qg3 {[%clk 0:01:27.2]} 22... Nc4 {[%clk 0:01:36.3]} 23. Rc3 {[%clk 0:01:19.1]}
23... Rxg4 {[%clk 0:01:10.9]} 24. hxg4 {[%clk 0:01:18.6]} 24... Re4 {[%clk
0:01:07.6]} 25. Kf3 {[%clk 0:01:13.7]} 25... Re8 {[%clk 0:00:48.6]} 26. Qf4
{[%clk 0:01:13.1]} 26... b5 {[%clk 0:00:42.2]} 27. b3 {[%clk 0:01:04.5]} 27...
axb3 {[%clk 0:00:42.4]} 28. Rxb3 {[%clk 0:01:05.5]} 28... c6 {[%clk 0:00:43.1]}
29. Bb4 {[%clk 0:01:04.3]} 29... Qc8 {[%clk 0:00:39.4]} 30. Kg3 {[%clk
0:01:02.1]} 30... Re4 {[%clk 0:00:36.9]} 31. Qf5 {[%clk 0:01:00]} 31... Qc7+
{[%clk 0:00:37.8]} 32. Kg2 {[%clk 0:00:51.8]} 32... g6 {[%clk 0:00:38.1]} 33.
Qf3 {[%clk 0:00:49.5]} 33... Qd7 {[%clk 0:00:38.8]} 34. Kh3 {[%clk 0:00:49.2]}
34... Qd8 {[%clk 0:00:36.1]} 35. Qf6 {[%clk 0:00:47.7]} 35... Qc8 {[%clk
0:00:36.9]} 36. f3 {[%clk 0:00:42.4]} 36... Re6 {[%clk 0:00:33.5]} 37. Qf4
{[%clk 0:00:41.8]} 37... Qe8 {[%clk 0:00:34.6]} 38. Bc5 {[%clk 0:00:34.3]} 38...
Nxe3 {[%clk 0:00:17.7]} 39. a4 {[%clk 0:00:35.2]} 39... Nc4 {[%clk 0:00:18.5]}
40. axb5 {[%clk 0:00:32.9]} 40... cxb5 {[%clk 0:00:19.8]} 41. Qc7 {[%clk
0:00:32.6]} 41... Re1 {[%clk 0:00:19.2]} 42. Qb7 {[%clk 0:00:16.1]} 42... h5
{[%clk 0:00:20.3]} 43. gxh5 {[%clk 0:00:10.9]} 43... gxh5 {[%clk 0:00:16.1]} 44.
g6 {[%clk 0:00:08.1]} 44... Qe6+ {[%clk 0:00:16.4]} 45. Kg2 {[%clk 0:00:08.6]}
45... Qxg6+ {[%clk 0:00:17.1]} 46. Kf2 {[%clk 0:00:09]} 46... Qg1# {[%clk
0:00:18.2]} 0-1